[Event "*** Titled Tuesday Blitz"]
[Site "Chess.com"]
[Date "2020.10.27"]
[Round "11"]
[White "Alexsur1981"]
[Black "Ginger_GM"]
[Result "1-0"]
[WhiteElo "2773"]
[BlackElo "2600"]
[TimeControl "180+1"]
[EndTime "12:05:50 PDT"]
[Termination "Alexsur1981 won by resignation"]

1. e4 {[%clk 0:03:00.9]} 1... d6 {[%clk 0:02:56.9]} 2. d4 {[%clk 0:03:00.5]}
2... Nf6 {[%clk 0:02:56.8]} 3. f3 {[%clk 0:02:59.3]} 3... Nbd7 {[%clk
0:02:56.8]} 4. c4 {[%clk 0:02:59.2]} 4... e5 {[%clk 0:02:57.1]} 5. d5 {[%clk
0:02:59.8]} 5... Be7 {[%clk 0:02:57.3]} 6. Be3 {[%clk 0:03:00.3]} 6... O-O
{[%clk 0:02:56.8]} 7. Nc3 {[%clk 0:03:00.1]} 7... Nh5 {[%clk 0:02:56.9]} 8. Qd2
{[%clk 0:02:59]} 8... a5 {[%clk 0:02:50.3]} 9. Nge2 {[%clk 0:02:55.2]} 9... Nc5
{[%clk 0:02:46.2]} 10. O-O-O {[%clk 0:02:53.9]} 10... a4 {[%clk 0:02:20.8]} 11.
Kb1 {[%clk 0:02:49.5]} 11... f5 {[%clk 0:02:20.2]} 12. Ng3 {[%clk 0:02:41.9]}
12... Nxg3 {[%clk 0:02:11.2]} 13. hxg3 {[%clk 0:02:42.8]} 13... b6 {[%clk
0:02:09.6]} 14. Bxc5 {[%clk 0:02:39.6]} 14... bxc5 {[%clk 0:02:09.7]} 15. exf5
{[%clk 0:02:39.9]} 15... Bxf5+ {[%clk 0:02:09.4]} 16. Bd3 {[%clk 0:02:40.4]}
16... Qd7 {[%clk 0:02:08.8]} 17. Bxf5 {[%clk 0:02:38.5]} 17... Qxf5+ {[%clk
0:02:08.6]} 18. Qc2 {[%clk 0:02:38.6]} 18... g6 {[%clk 0:01:55]} 19. g4 {[%clk
0:02:34.2]} 19... Qf7 {[%clk 0:01:49.3]} 20. Nxa4 {[%clk 0:02:24.2]} 20... e4
{[%clk 0:01:48.2]} 21. fxe4 {[%clk 0:02:19.7]} 21... Bf6 {[%clk 0:01:48.2]} 22.
Nc3 {[%clk 0:02:19.1]} 22... Qg7 {[%clk 0:01:45.2]} 23. Nb5 {[%clk 0:02:17.2]}
23... Qd7 {[%clk 0:01:23.2]} 24. Rh3 {[%clk 0:02:12.3]} 24... Qxg4 {[%clk
0:01:19.4]} 25. Nxc7 {[%clk 0:02:09.1]} 25... Rab8 {[%clk 0:01:18.7]} 26. Nb5
{[%clk 0:02:06.7]} 26... Be5 {[%clk 0:01:16.3]} 27. Rdh1 {[%clk 0:01:49.9]}
27... h5 {[%clk 0:01:12.9]} 28. a4 {[%clk 0:01:48]} 28... Ra8 {[%clk 0:01:08.5]}
29. Re3 {[%clk 0:01:40]} 29... Ra5 {[%clk 0:01:02.4]} 30. Ka2 {[%clk 0:01:32.6]}
30... Rfa8 {[%clk 0:01:02]} 31. b3 {[%clk 0:01:32.6]} 31... Rf8 {[%clk
0:01:00.4]} 32. Qe2 {[%clk 0:01:31.1]} 32... Qg5 {[%clk 0:00:59.6]} 33. Rhh3
{[%clk 0:01:24.4]} 33... Raa8 {[%clk 0:00:57.3]} 34. Rhf3 {[%clk 0:01:22.4]}
34... Bg7 {[%clk 0:00:50.6]} 35. e5 {[%clk 0:01:11.3]} 35... Bxe5 {[%clk
0:00:48.7]} 36. Nc7 {[%clk 0:01:10.6]} 36... Rxf3 {[%clk 0:00:46.1]} 37. Qxf3
{[%clk 0:01:07.9]} 37... Rc8 {[%clk 0:00:31.8]} 38. Ne6 {[%clk 0:01:07.5]} 38...
Qe7 {[%clk 0:00:27]} 39. Qe4 {[%clk 0:01:00.7]} 39... Kh7 {[%clk 0:00:26.7]} 40.
Rf3 {[%clk 0:00:59.5]} 40... Rb8 {[%clk 0:00:24.7]} 41. Rf7+ {[%clk 0:00:55.7]}
41... Qxf7 {[%clk 0:00:23.3]} 42. Ng5+ {[%clk 0:00:56]} 42... Kg7 {[%clk
0:00:23.6]} 43. Nxf7 {[%clk 0:00:56.9]} 43... Kxf7 {[%clk 0:00:24.1]} 44. Qf3+
{[%clk 0:00:53]} 44... Kg7 {[%clk 0:00:22.5]} 45. Qh3 {[%clk 0:00:52.1]} 45...
Rf8 {[%clk 0:00:21.8]} 46. b4 {[%clk 0:00:49.5]} 46... cxb4 {[%clk 0:00:20.4]}
47. Kb3 {[%clk 0:00:49.5]} 47... Bc3 {[%clk 0:00:19.4]} 48. c5 {[%clk
0:00:49.3]} 48... dxc5 {[%clk 0:00:19.1]} 49. d6 {[%clk 0:00:49.8]} 49... Rb8
{[%clk 0:00:10.6]} 50. Qe6 {[%clk 0:00:47.8]} 50... Bf6 {[%clk 0:00:10.1]} 51.
a5 {[%clk 0:00:46.7]} 51... c4+ {[%clk 0:00:08.1]} 52. Qxc4 {[%clk 0:00:46]} 1-0

[Event "*** Titled Tuesday Blitz"]
[Site "Chess.com"]
[Date "2020.10.27"]
[Round "11"]
[White "Kapibara_Warri0r"]
[Black "Evachess2006"]
[Result "1-0"]
[WhiteElo "2136"]
[BlackElo "1641"]
[TimeControl "180+1"]
[EndTime "12:05:52 PDT"]
[Termination "Kapibara_Warri0r won by resignation"]

1. e4 {[%clk 0:02:59.7]} 1... e5 {[%clk 0:02:57.4]} 2. Nf3 {[%clk 0:02:59.2]}
2... Nc6 {[%clk 0:02:57.7]} 3. Bb5 {[%clk 0:02:58.6]} 3... a6 {[%clk 0:02:54]}
4. Ba4 {[%clk 0:02:59.1]} 4... Nf6 {[%clk 0:02:50.8]} 5. O-O {[%clk 0:02:59.5]}
5... b5 {[%clk 0:02:49.3]} 6. Bb3 {[%clk 0:02:59.2]} 6... Be7 {[%clk 0:02:49.8]}
7. Re1 {[%clk 0:02:58.8]} 7... O-O {[%clk 0:02:50.4]} 8. a4 {[%clk 0:02:58.9]}
8... b4 {[%clk 0:02:48.5]} 9. d4 {[%clk 0:02:57.3]} 9... exd4 {[%clk 0:02:44.7]}
10. Nxd4 {[%clk 0:02:54.6]} 10... Nxd4 {[%clk 0:02:44]} 11. Qxd4 {[%clk
0:02:55.5]} 11... c5 {[%clk 0:02:43.2]} 12. Qd1 {[%clk 0:02:52]} 12... Bb7
{[%clk 0:02:40.5]} 13. e5 {[%clk 0:02:47.8]} 13... Ne4 {[%clk 0:02:12.7]} 14.
Bd5 {[%clk 0:02:43.8]} 14... Qc7 {[%clk 0:02:07.1]} 15. Bxe4 {[%clk 0:02:42]}
15... Bxe4 {[%clk 0:02:02]} 16. Rxe4 {[%clk 0:02:42.9]} 16... Qc6 {[%clk
0:02:02.2]} 17. Qf3 {[%clk 0:02:35.7]} 17... d5 {[%clk 0:01:56]} 18. exd6 {[%clk
0:02:30.6]} 18... Bxd6 {[%clk 0:01:56.9]} 19. Bf4 {[%clk 0:02:28.8]} 19... Rae8
{[%clk 0:01:44.4]} 20. Rxe8 {[%clk 0:01:41.4]} 20... Rxe8 {[%clk 0:01:38.4]} 21.
Bd2 {[%clk 0:01:40.7]} 21... Qxf3 {[%clk 0:01:08.1]} 22. gxf3 {[%clk 0:01:41.6]}
22... Be5 {[%clk 0:01:08]} 23. c3 {[%clk 0:01:38.7]} 23... bxc3 {[%clk
0:01:07.8]} 24. Nxc3 {[%clk 0:01:38.6]} 24... Rb8 {[%clk 0:01:06.3]} 25. Rb1
{[%clk 0:01:15.5]} 25... Rb4 {[%clk 0:00:34.3]} 26. Re1 {[%clk 0:01:09.4]} 26...
f6 {[%clk 0:00:20.9]} 27. Ne4 {[%clk 0:00:57.8]} 27... Rxb2 {[%clk 0:00:18.7]}
28. Bc3 {[%clk 0:00:55.8]} 28... Ra2 {[%clk 0:00:15.1]} 29. Bxe5 {[%clk
0:00:54.8]} 29... fxe5 {[%clk 0:00:14.7]} 30. Nxc5 {[%clk 0:00:55.5]} 30... Ra3
{[%clk 0:00:14.3]} 31. Rxe5 {[%clk 0:00:54.2]} 31... Rxf3 {[%clk 0:00:12.6]} 32.
Nxa6 {[%clk 0:00:53.3]} 32... Rf4 {[%clk 0:00:12.2]} 33. a5 {[%clk 0:00:52]}
33... Rg4+ {[%clk 0:00:12.4]} 34. Kf1 {[%clk 0:00:51.3]} 34... Ra4 {[%clk
0:00:13.3]} 35. Nc7 {[%clk 0:00:50.3]} 35... Ra1+ {[%clk 0:00:13]} 36. Kg2
{[%clk 0:00:50.7]} 36... Ra2 {[%clk 0:00:13.9]} 37. a6 {[%clk 0:00:50.7]} 37...
Ra4 {[%clk 0:00:12.7]} 38. Re8+ {[%clk 0:00:40]} 38... Kf7 {[%clk 0:00:11.4]}
39. Ra8 {[%clk 0:00:40.5]} 39... Rf4 {[%clk 0:00:10.6]} 40. Nb5 {[%clk
0:00:37.3]} 40... Rg4+ {[%clk 0:00:11.5]} 41. Kf3 {[%clk 0:00:36.4]} 41... Rb4
{[%clk 0:00:11.6]} 42. a7 {[%clk 0:00:34.6]} 42... Ra4 {[%clk 0:00:07.6]} 43.
Rb8 {[%clk 0:00:31.6]} 43... Ra3+ {[%clk 0:00:07.1]} 1-0

[Event "*** Titled Tuesday Blitz"]
[Site "Chess.com"]
[Date "2020.10.27"]
[Round "11"]
[White "anon481216"]
[Black "nitpicker"]
[Result "1-0"]
[WhiteElo "2407"]
[BlackElo "2253"]
[TimeControl "180+1"]
[EndTime "12:05:55 PDT"]
[Termination "anon481216 won on time"]

1. d4 {[%clk 0:03:00.9]} 1... Nf6 {[%clk 0:02:58.9]} 2. c4 {[%clk 0:03:00.6]}
2... e6 {[%clk 0:02:59.1]} 3. Nf3 {[%clk 0:03:00.1]} 3... b6 {[%clk 0:02:58.5]}
4. g3 {[%clk 0:02:55.5]} 4... Ba6 {[%clk 0:02:57.4]} 5. Qc2 {[%clk 0:02:55]}
5... c6 {[%clk 0:02:57]} 6. Bg2 {[%clk 0:02:54.5]} 6... Bb4+ {[%clk 0:02:56.1]}
7. Bd2 {[%clk 0:02:53.7]} 7... Be7 {[%clk 0:02:56]} 8. e4 {[%clk 0:02:47.4]}
8... d5 {[%clk 0:02:44]} 9. e5 {[%clk 0:02:47.4]} 9... Ne4 {[%clk 0:02:39.6]}
10. b3 {[%clk 0:02:47.2]} 10... O-O {[%clk 0:02:35]} 11. O-O {[%clk 0:02:45.6]}
11... f6 {[%clk 0:02:35.2]} 12. exf6 {[%clk 0:02:33]} 12... Bxf6 {[%clk
0:02:33.9]} 13. Re1 {[%clk 0:02:26]} 13... Nd7 {[%clk 0:02:28]} 14. Bf4 {[%clk
0:02:24.8]} 14... Rc8 {[%clk 0:02:24.1]} 15. Nbd2 {[%clk 0:02:19.1]} 15... Nxd2
{[%clk 0:02:12.4]} 16. Qxd2 {[%clk 0:02:16.3]} 16... dxc4 {[%clk 0:02:12.2]} 17.
Rxe6 {[%clk 0:02:12.4]} 17... c5 {[%clk 0:02:06.3]} 18. Rc1 {[%clk 0:01:33.8]}
18... cxd4 {[%clk 0:01:58.9]} 19. Nxd4 {[%clk 0:01:33]} 19... Nc5 {[%clk
0:01:51.2]} 20. Rd6 {[%clk 0:01:29.7]} 20... Qe8 {[%clk 0:01:37.8]} 21. bxc4
{[%clk 0:01:23.5]} 21... Ne4 {[%clk 0:01:26.6]} 22. Bxe4 {[%clk 0:01:22.4]}
22... Qxe4 {[%clk 0:01:26.3]} 23. Re1 {[%clk 0:00:50.7]} 23... Qg6 {[%clk
0:01:17.9]} 24. Nc6 {[%clk 0:00:44.6]} 24... Qf7 {[%clk 0:00:48]} 25. Ne5 {[%clk
0:00:21.3]} 25... Bxe5 {[%clk 0:00:44.6]} 26. Bxe5 {[%clk 0:00:20.9]} 26... Rce8
{[%clk 0:00:26.5]} 27. Rd7 {[%clk 0:00:17.2]} 27... Re7 {[%clk 0:00:26.6]} 28.
Rxe7 {[%clk 0:00:15]} 28... Qxe7 {[%clk 0:00:26.7]} 29. Bd6 {[%clk 0:00:11.1]}
29... Qd7 {[%clk 0:00:20]} 30. Re7 {[%clk 0:00:10.9]} 30... Qc6 {[%clk
0:00:17.5]} 31. Qg5 {[%clk 0:00:08.7]} 31... g6 {[%clk 0:00:15.8]} 32. Qe5
{[%clk 0:00:03.9]} 1-0

[Event "*** Titled Tuesday Blitz"]
[Site "Chess.com"]
[Date "2020.10.27"]
[Round "11"]
[White "m_ezat"]
[Black "Aygehovit1992"]
[Result "0-1"]
[WhiteElo "2513"]
[BlackElo "2645"]
[TimeControl "180+1"]
[EndTime "12:05:57 PDT"]
[Termination "Aygehovit1992 won on time"]

1. d4 {[%clk 0:03:00.9]} 1... d6 {[%clk 0:03:00.9]} 2. c4 {[%clk 0:03:01]} 2...
Nf6 {[%clk 0:03:01.2]} 3. Nc3 {[%clk 0:03:00.7]} 3... g6 {[%clk 0:03:02.1]} 4.
e4 {[%clk 0:03:00.5]} 4... Bg7 {[%clk 0:03:02.7]} 5. Be2 {[%clk 0:03:01]} 5...
O-O {[%clk 0:03:03.4]} 6. Bg5 {[%clk 0:03:01.2]} 6... h6 {[%clk 0:03:02.9]} 7.
Be3 {[%clk 0:03:00.2]} 7... e5 {[%clk 0:03:00.8]} 8. d5 {[%clk 0:02:59.1]} 8...
Ne8 {[%clk 0:02:55.8]} 9. Qd2 {[%clk 0:02:54.5]} 9... Kh7 {[%clk 0:02:54.2]} 10.
g4 {[%clk 0:02:42.1]} 10... f5 {[%clk 0:02:54.5]} 11. gxf5 {[%clk 0:02:41.9]}
11... gxf5 {[%clk 0:02:55.4]} 12. exf5 {[%clk 0:02:41.6]} 12... Bxf5 {[%clk
0:02:56.3]} 13. h4 {[%clk 0:02:40.4]} 13... Nd7 {[%clk 0:02:56.5]} 14. Nh3
{[%clk 0:02:31.9]} 14... c6 {[%clk 0:02:38.8]} 15. Bd3 {[%clk 0:02:20.7]} 15...
cxd5 {[%clk 0:02:30.1]} 16. cxd5 {[%clk 0:02:10.3]} 16... e4 {[%clk 0:02:23.9]}
17. Bxe4 {[%clk 0:01:55.2]} 17... Bxe4 {[%clk 0:02:21.2]} 18. Nxe4 {[%clk
0:01:55.7]} 18... Ne5 {[%clk 0:02:22.1]} 19. O-O-O {[%clk 0:01:51.5]} 19... Rc8+
{[%clk 0:02:08.1]} 20. Kb1 {[%clk 0:01:50.9]} 20... Qd7 {[%clk 0:02:08.6]} 21.
Bd4 {[%clk 0:00:57.2]} 21... Qf5 {[%clk 0:02:04]} 22. Qe2 {[%clk 0:00:47.6]}
22... Nf6 {[%clk 0:01:50.1]} 23. Ng5+ {[%clk 0:00:36.4]} 23... Kg8 {[%clk
0:01:50]} 24. Ka1 {[%clk 0:00:36.3]} 24... hxg5 {[%clk 0:01:48.9]} 25. Nxd6
{[%clk 0:00:36.1]} 25... Rc2 {[%clk 0:01:35.7]} 26. Qxe5 {[%clk 0:00:31.6]}
26... Qxe5 {[%clk 0:01:32.4]} 27. Bxe5 {[%clk 0:00:32.1]} 27... Ng4 {[%clk
0:01:30.7]} 28. Bxg7 {[%clk 0:00:32]} 28... Kxg7 {[%clk 0:01:31.6]} 29. Ne4
{[%clk 0:00:26.4]} 29... Nxf2 {[%clk 0:01:29]} 30. Nxf2 {[%clk 0:00:10.9]} 30...
Rfxf2 {[%clk 0:01:29.9]} 31. Rb1 {[%clk 0:00:10.9]} 31... g4 {[%clk 0:01:26.1]}
32. Rhg1 {[%clk 0:00:10.8]} 32... Rf4 {[%clk 0:01:25.6]} 33. Rbd1 {[%clk
0:00:10.3]} 33... Kf8 {[%clk 0:01:24.6]} 34. d6 {[%clk 0:00:10.6]} 34... Ke8
{[%clk 0:01:22.3]} 35. d7+ {[%clk 0:00:10.9]} 35... Kd8 {[%clk 0:01:22.8]} 36.
h5 {[%clk 0:00:11]} 36... Rh2 {[%clk 0:01:22.1]} 37. Rge1 {[%clk 0:00:11.1]}
37... Rf8 {[%clk 0:01:21.9]} 38. Re5 {[%clk 0:00:11.5]} 38... Rd2 {[%clk
0:01:15.5]} 39. Rg1 {[%clk 0:00:09.8]} 39... g3 {[%clk 0:01:12.8]} 40. a3 {[%clk
0:00:07.2]} 40... g2 {[%clk 0:01:12.8]} 41. Ree1 {[%clk 0:00:06.4]} 41... Kxd7
{[%clk 0:01:07.8]} 42. h6 {[%clk 0:00:06.6]} 42... Rdf2 {[%clk 0:00:59.5]} 43.
h7 {[%clk 0:00:05.6]} 43... Rh8 {[%clk 0:00:59.5]} 44. Rd1+ {[%clk 0:00:04.8]}
44... Ke7 {[%clk 0:00:59]} 45. Rge1+ {[%clk 0:00:04.5]} 45... Kf7 {[%clk
0:00:58.6]} 46. Rd7+ {[%clk 0:00:02.9]} 46... Kf6 {[%clk 0:00:59]} 47. Rd6+
{[%clk 0:00:03.2]} 47... Kg5 {[%clk 0:00:58]} 48. Rd7 {[%clk 0:00:03.4]} 48...
Rf1 {[%clk 0:00:56]} 49. Rg7+ {[%clk 0:00:03.9]} 49... Kh6 {[%clk 0:00:55.2]}
50. Re7 {[%clk 0:00:03.9]} 50... g1=Q {[%clk 0:00:54.3]} 51. Ka2 {[%clk
0:00:04.4]} 51... Rxe1 {[%clk 0:00:54.2]} 52. Re6+ {[%clk 0:00:03.3]} 52... Rxe6
{[%clk 0:00:53.5]} 0-1

[Event "*** Titled Tuesday Blitz"]
[Site "Chess.com"]
[Date "2020.10.27"]
[Round "11"]
[White "Fh2411"]
[Black "swimmerchess"]
[Result "0-1"]
[WhiteElo "2524"]
[BlackElo "2784"]
[TimeControl "180+1"]
[EndTime "12:05:59 PDT"]
[Termination "swimmerchess won on time"]

1. d4 {[%clk 0:02:59.3]} 1... Nf6 {[%clk 0:02:59.8]} 2. Nf3 {[%clk 0:02:59.7]}
2... g6 {[%clk 0:02:59.9]} 3. g3 {[%clk 0:02:58.4]} 3... Bg7 {[%clk 0:03:00.1]}
4. Bg2 {[%clk 0:02:59.3]} 4... O-O {[%clk 0:03:00.7]} 5. O-O {[%clk 0:02:58.3]}
5... d6 {[%clk 0:03:01]} 6. b3 {[%clk 0:02:57.2]} 6... e5 {[%clk 0:03:00.1]} 7.
dxe5 {[%clk 0:02:55.9]} 7... Nfd7 {[%clk 0:03:00.5]} 8. Bb2 {[%clk 0:02:55.6]}
8... Nc6 {[%clk 0:03:01]} 9. Nbd2 {[%clk 0:02:55]} 9... dxe5 {[%clk 0:02:52.4]}
10. Qc1 {[%clk 0:02:48.8]} 10... Re8 {[%clk 0:02:48.4]} 11. e3 {[%clk
0:02:45.9]} 11... e4 {[%clk 0:02:30.9]} 12. Nd4 {[%clk 0:02:43.5]} 12... Nxd4
{[%clk 0:02:29.1]} 13. Bxd4 {[%clk 0:02:44.1]} 13... Bxd4 {[%clk 0:02:28.2]} 14.
exd4 {[%clk 0:02:45]} 14... f5 {[%clk 0:02:28.6]} 15. c4 {[%clk 0:02:41.3]}
15... Nf6 {[%clk 0:02:26.7]} 16. Qc3 {[%clk 0:02:40]} 16... c6 {[%clk
0:02:26.5]} 17. Rfe1 {[%clk 0:02:32.8]} 17... Qd6 {[%clk 0:02:23.4]} 18. f3
{[%clk 0:02:29.3]} 18... exf3 {[%clk 0:02:16]} 19. Rxe8+ {[%clk 0:02:25.4]}
19... Nxe8 {[%clk 0:02:16.9]} 20. Nxf3 {[%clk 0:02:25.5]} 20... Be6 {[%clk
0:02:09.9]} 21. Re1 {[%clk 0:02:24.2]} 21... Rd8 {[%clk 0:02:05.8]} 22. Ng5
{[%clk 0:02:06.3]} 22... Bc8 {[%clk 0:01:34.6]} 23. d5 {[%clk 0:02:04.9]} 23...
Nf6 {[%clk 0:00:55.5]} 24. dxc6 {[%clk 0:00:51.8]} 24... bxc6 {[%clk 0:00:56.4]}
25. Nh3 {[%clk 0:00:30.8]} 25... Ne4 {[%clk 0:00:37.3]} 26. Bxe4 {[%clk
0:00:29.3]} 26... fxe4 {[%clk 0:00:38.2]} 27. Nf4 {[%clk 0:00:29.3]} 27... Bf5
{[%clk 0:00:37.1]} 28. Qe3 {[%clk 0:00:26.2]} 28... Qd2 {[%clk 0:00:31.5]} 29.
Qxd2 {[%clk 0:00:25.5]} 29... Rxd2 {[%clk 0:00:32.4]} 30. Re2 {[%clk 0:00:26.2]}
30... Rd4 {[%clk 0:00:30.2]} 31. Kf2 {[%clk 0:00:25.4]} 31... Kf7 {[%clk
0:00:30.4]} 32. h4 {[%clk 0:00:23.4]} 32... Kf6 {[%clk 0:00:28.6]} 33. Ke3
{[%clk 0:00:23.4]} 33... Ke5 {[%clk 0:00:27]} 34. Rd2 {[%clk 0:00:21.5]} 34...
c5 {[%clk 0:00:22.2]} 35. Rf2 {[%clk 0:00:18.6]} 35... Bg4 {[%clk 0:00:18.6]}
36. Rc2 {[%clk 0:00:15.5]} 36... Rd1 {[%clk 0:00:16.6]} 37. Nd5 {[%clk
0:00:10.3]} 37... Rd3+ {[%clk 0:00:15.5]} 38. Kf2 {[%clk 0:00:10.2]} 38... Kd4
{[%clk 0:00:15.8]} 39. Nf4 {[%clk 0:00:06.8]} 39... e3+ {[%clk 0:00:16.1]} 40.
Kg2 {[%clk 0:00:04.3]} 40... Rd2+ {[%clk 0:00:16.3]} 0-1

[Event "*** Titled Tuesday Blitz"]
[Site "Chess.com"]
[Date "2020.10.27"]
[Round "11"]
[White "Dream2World_Number1"]
[Black "Caterpiller35"]
[Result "1-0"]
[WhiteElo "2198"]
[BlackElo "2449"]
[TimeControl "180+1"]
[EndTime "12:06:00 PDT"]
[Termination "Dream2World_Number1 won on time"]

1. e4 {[%clk 0:03:00.9]} 1... d5 {[%clk 0:02:58.9]} 2. e5 {[%clk 0:02:59.7]}
2... c5 {[%clk 0:02:58.9]} 3. Nf3 {[%clk 0:02:59.3]} 3... Bg4 {[%clk 0:02:58.2]}
4. Bb5+ {[%clk 0:02:58.5]} 4... Nc6 {[%clk 0:02:57.9]} 5. c3 {[%clk 0:02:58.1]}
5... e6 {[%clk 0:02:58.1]} 6. O-O {[%clk 0:02:55.9]} 6... Ne7 {[%clk 0:02:58.1]}
7. d4 {[%clk 0:02:55.6]} 7... Qb6 {[%clk 0:02:57.1]} 8. a4 {[%clk 0:02:54.1]}
8... a6 {[%clk 0:02:55.8]} 9. Bxc6+ {[%clk 0:02:51.1]} 9... Nxc6 {[%clk
0:02:56.7]} 10. a5 {[%clk 0:02:46]} 10... Nxa5 {[%clk 0:02:47.3]} 11. dxc5
{[%clk 0:02:44.7]} 11... Qc7 {[%clk 0:02:45.7]} 12. b4 {[%clk 0:02:42.4]} 12...
Nc4 {[%clk 0:02:44.7]} 13. Bf4 {[%clk 0:02:39.5]} 13... g5 {[%clk 0:02:29]} 14.
Bg3 {[%clk 0:02:36.4]} 14... Be7 {[%clk 0:02:18.5]} 15. h3 {[%clk 0:02:35.5]}
15... Bh5 {[%clk 0:02:18.3]} 16. Qd3 {[%clk 0:02:26.9]} 16... Bg6 {[%clk
0:02:12.1]} 17. Qe2 {[%clk 0:02:25.6]} 17... h5 {[%clk 0:02:09.5]} 18. Nbd2
{[%clk 0:02:23.5]} 18... Nxd2 {[%clk 0:02:05.1]} 19. Qxd2 {[%clk 0:02:24.4]}
19... h4 {[%clk 0:01:57.3]} 20. Bh2 {[%clk 0:02:22.8]} 20... g4 {[%clk
0:01:47.4]} 21. hxg4 {[%clk 0:02:21.7]} 21... h3 {[%clk 0:01:46.9]} 22. Nd4
{[%clk 0:02:17.3]} 22... hxg2 {[%clk 0:01:44.1]} 23. Kxg2 {[%clk 0:02:18.2]}
23... O-O-O {[%clk 0:01:28]} 24. Bg3 {[%clk 0:02:14]} 24... Rhg8 {[%clk
0:01:15.2]} 25. f3 {[%clk 0:02:13.3]} 25... Rg7 {[%clk 0:01:02.3]} 26. Qe2
{[%clk 0:01:56]} 26... Rdg8 {[%clk 0:01:00.5]} 27. Rh1 {[%clk 0:01:54.3]} 27...
Be4 {[%clk 0:00:56.6]} 28. fxe4 {[%clk 0:01:46.9]} 28... Rxg4 {[%clk 0:00:56.2]}
29. Rh3 {[%clk 0:01:37.3]} 29... Qxe5 {[%clk 0:00:55.7]} 30. Qf3 {[%clk
0:01:23]} 30... Bh4 {[%clk 0:00:54.8]} 31. Ne2 {[%clk 0:01:22]} 31... dxe4
{[%clk 0:00:40]} 32. Qxf7 {[%clk 0:00:54.3]} 32... Bxg3 {[%clk 0:00:36.4]} 33.
Rh7 {[%clk 0:00:40.8]} 33... Bh4+ {[%clk 0:00:09.7]} 34. Kf1 {[%clk 0:00:40.4]}
34... R4g7 {[%clk 0:00:08.5]} 35. Rxg7 {[%clk 0:00:40.1]} 35... Rxg7 {[%clk
0:00:08.7]} 36. Qf8+ {[%clk 0:00:25.2]} 36... Kc7 {[%clk 0:00:07.1]} 37. Nd4
{[%clk 0:00:21.7]} 37... Qf4+ {[%clk 0:00:01.8]} 38. Qxf4+ {[%clk 0:00:21]} 1-0

[Event "*** Titled Tuesday Blitz"]
[Site "Chess.com"]
[Date "2020.10.27"]
[Round "11"]
[White "parintele_chess"]
[Black "Quattroporte300"]
[Result "0-1"]
[WhiteElo "2145"]
[BlackElo "2241"]
[TimeControl "180+1"]
[EndTime "12:06:02 PDT"]
[Termination "Quattroporte300 won by resignation"]

1. d4 {[%clk 0:03:00]} 1... Nf6 {[%clk 0:02:50.5]} 2. c4 {[%clk 0:02:59.5]} 2...
b6 {[%clk 0:02:50.8]} 3. Nf3 {[%clk 0:02:57.9]} 3... Bb7 {[%clk 0:02:34.7]} 4.
g3 {[%clk 0:02:57.5]} 4... g6 {[%clk 0:02:25.7]} 5. Bg2 {[%clk 0:02:57.2]} 5...
Bg7 {[%clk 0:02:26.2]} 6. O-O {[%clk 0:02:57.1]} 6... O-O {[%clk 0:02:26.7]} 7.
Nbd2 {[%clk 0:02:56.2]} 7... d5 {[%clk 0:02:15.9]} 8. b3 {[%clk 0:02:55.9]} 8...
c6 {[%clk 0:02:06.3]} 9. Bb2 {[%clk 0:02:54.5]} 9... Nbd7 {[%clk 0:02:02.3]} 10.
Ne5 {[%clk 0:02:52]} 10... Nxe5 {[%clk 0:01:57.9]} 11. dxe5 {[%clk 0:02:52.9]}
11... Nd7 {[%clk 0:01:58.4]} 12. cxd5 {[%clk 0:02:37.3]} 12... cxd5 {[%clk
0:01:53.3]} 13. Nc4 {[%clk 0:02:35.4]} 13... dxc4 {[%clk 0:01:36.6]} 14. Bxb7
{[%clk 0:02:34.5]} 14... Rb8 {[%clk 0:01:37.1]} 15. Bd5 {[%clk 0:02:26.3]} 15...
Nxe5 {[%clk 0:01:28.5]} 16. bxc4 {[%clk 0:02:24.3]} 16... e6 {[%clk 0:01:24.5]}
17. Bg2 {[%clk 0:02:17.6]} 17... Nxc4 {[%clk 0:01:21.6]} 18. Bxg7 {[%clk
0:02:14.1]} 18... Kxg7 {[%clk 0:01:17.2]} 19. Qc2 {[%clk 0:02:12.2]} 19... Rc8
{[%clk 0:01:15.4]} 20. Rfd1 {[%clk 0:02:10.1]} 20... Qe7 {[%clk 0:01:10.8]} 21.
Rac1 {[%clk 0:02:05.4]} 21... Rc5 {[%clk 0:01:07]} 22. Qc3+ {[%clk 0:02:02.4]}
22... Qf6 {[%clk 0:01:02.3]} 23. Qxf6+ {[%clk 0:01:51.2]} 23... Kxf6 {[%clk
0:01:03.2]} 24. Rd4 {[%clk 0:01:51.7]} 24... Rfc8 {[%clk 0:01:01.9]} 25. Rd7
{[%clk 0:01:37.7]} 25... R8c7 {[%clk 0:00:59.9]} 26. Rxc7 {[%clk 0:01:34.5]}
26... Rxc7 {[%clk 0:00:59.5]} 27. e4 {[%clk 0:01:34.9]} 27... e5 {[%clk
0:00:57.6]} 28. Bf1 {[%clk 0:01:33.1]} 28... b5 {[%clk 0:00:57.9]} 29. a4 {[%clk
0:01:29.1]} 29... a6 {[%clk 0:00:56.8]} 30. axb5 {[%clk 0:01:18.3]} 30... axb5
{[%clk 0:00:56.4]} 31. Rb1 {[%clk 0:01:13.5]} 31... Rc5 {[%clk 0:00:56.3]} 32.
Kg2 {[%clk 0:01:11.1]} 32... Ke6 {[%clk 0:00:54.9]} 33. Bxc4+ {[%clk 0:01:05.6]}
33... bxc4 {[%clk 0:00:52.9]} 34. f4 {[%clk 0:01:05.9]} 34... c3 {[%clk
0:00:46.7]} 35. Kf3 {[%clk 0:01:02.2]} 35... exf4 {[%clk 0:00:44.5]} 36. gxf4
{[%clk 0:01:03.1]} 36... g5 {[%clk 0:00:44.5]} 37. fxg5 {[%clk 0:00:50.4]} 37...
Rxg5 {[%clk 0:00:32.7]} 38. Rc1 {[%clk 0:00:49.5]} 38... Rc5 {[%clk 0:00:32.6]}
39. Ke3 {[%clk 0:00:49.5]} 39... Ke5 {[%clk 0:00:32.1]} 40. Kd3 {[%clk
0:00:48.4]} 40... c2 {[%clk 0:00:29.2]} 41. h4 {[%clk 0:00:27.2]} 41... h5
{[%clk 0:00:28.7]} 42. Ke3 {[%clk 0:00:26.1]} 42... f6 {[%clk 0:00:26]} 43. Kd3
{[%clk 0:00:23.1]} 43... Kf4 {[%clk 0:00:22.4]} 44. Rf1+ {[%clk 0:00:18.8]}
44... Kg4 {[%clk 0:00:22.5]} 0-1